bitfinex-derivatives/quotes_SOLF0:USTF0_20260305
["timestamp","ask_amount","ask_price","bid_price","bid_amount"]
[1772720779630,13.15641517,90.847,90.803,9.91]
[1772720781631,13.15641517,90.847,90.81,4.26349657]
[1772720783233,13.15641517,90.847,90.803,9.91]
[1772720783533,13.15641517,90.847,90.79,4.26349657]
[1772720783534,4.26349657,90.84,90.79,4.26349657]
[1772720783834,13.15641517,90.839,90.78,4.26349657]
[1772720784025,9.907,90.832,90.79,4.26349657]
[1772720784331,13.15641517,90.839,90.79,4.26349657]
[1772720784528,13.15641517,90.809,90.751,13.63936796]
[1772720784728,13.15641517,90.809,90.76,4.26349657]
[1772720784923,13.15641517,90.809,90.761,13.63936796]
[1772720785129,13.15641517,90.809,90.761,23.55336796]
[1772720786129,13.15641517,90.809,90.77,4.26349657]
[1772720789533,13.15641517,90.809,90.764,9.914]
[1772720789730,4.26349657,90.8,90.744,13.44764965]
[1772720790037,19.812,90.838,90.73,4.26349657]
[1772720790038,9.911,90.787,90.73,4.26349657]
[1772720790237,13.77033649,90.786,90.74,4.26349657]
[1772720790438,13.77033649,90.802,90.76,4.26349657]
[1772720793333,9.909,90.809,90.76,4.26349657]
[1772720793334,9.908,90.817,90.761,12.67795592]
[1772720793535,23.67833649,90.817,90.77,4.26349657]
[1772720793740,13.77033649,90.816,90.77,4.26349657]
[1772720794531,9.908,90.815,90.77,4.26729034]
[1772720794737,13.77033649,90.814,90.77,4.26729034]
[1772720794936,4.26729034,90.81,90.76,4.26729034]
[1772720795243,13.77033649,90.799,90.75,4.26729034]
[1772720796537,9.91,90.798,90.75,4.26729034]
[1772720796834,13.77033649,90.797,90.75,4.26729034]
[1772720798035,9.91,90.796,90.75,4.26729034]
[1772720798337,13.77033649,90.795,90.75,4.26729034]
[1772720799744,4.26729034,90.82,90.77,4.26729034]
[1772720800042,13.77033649,90.819,90.76,4.26729034]
[1772720800241,10.15221628,90.871,90.76,4.26729034]
[1772720800242,13.77033649,90.806,90.76,4.26729034]
[1772720802545,13.77033649,90.806,90.761,9.914]
[1772720803536,13.77033649,90.806,90.76,4.26729034]
[1772720803741,4.26729034,90.79,90.74,4.26729034]
[1772720804045,4.26729034,90.76,90.71,4.26729034]
[1772720804241,13.77033649,90.759,90.7,4.26729034]
[1772720804846,13.77033649,90.749,90.7,4.26729034]
[1772720806043,13.77033649,90.749,90.71,4.26729034]
[1772720807552,13.77033649,90.767,90.72,4.26729034]
[1772720808141,13.77033649,90.763,90.71,4.26729034]
[1772720808448,13.77033649,90.759,90.71,4.26729034]
[1772720808639,9.915,90.758,90.71,4.26729034]
[1772720808846,13.12074766,90.757,90.71,4.26729034]
[1772720811154,19.82,90.8,90.72,4.26729034]
[1772720811155,13.12074766,90.768,90.72,4.26729034]
[1772720811354,4.26729034,90.76,90.71,4.26729034]
[1772720811553,13.12074766,90.759,90.71,4.26729034]
[1772720812345,9.914,90.759,90.71,4.26729034]
[1772720812545,13.12074766,90.758,90.71,4.26729034]
[1772720818460,9.915,90.755,90.71,4.26729034]
[1772720818661,13.12074766,90.754,90.71,4.26729034]
[1772720819359,13.12074766,90.779,90.74,4.26729034]
[1772720819563,13.12074766,90.779,90.723,13.03550227]
[1772720819564,13.12074766,90.779,90.75,4.26729034]
[1772720819760,13.12074766,90.779,90.677,154.371]
[1772720819761,13.12074766,90.809,90.77,4.26729034]
[1772720820562,13.12074766,90.809,90.754,13.03550227]
[1772720821161,13.12074766,90.801,90.75,9.14441358]
[1772720822058,13.12074766,90.801,90.715,13.03550227]
[1772720823062,13.12074766,90.778,90.73,9.917]
[1772720826158,13.12074766,90.778,90.737,9.917]
[1772720827256,13.12074766,90.777,90.715,13.03550227]
[1772720828464,23.03374766,90.772,90.717,9.919]
[1772720828966,13.12074766,90.771,90.717,9.919]
[1772720829767,13.12074766,90.788,90.731,13.03550227]
[1772720830266,9.911,90.787,90.732,9.917]
[1772720830466,13.12074766,90.786,90.732,9.917]
[1772720830659,13.12074766,90.786,90.711,13.03550227]
[1772720830865,13.12074766,90.769,90.721,9.918]
[1772720834266,13.12074766,90.769,90.727,9.918]
[1772720834664,13.12074766,90.769,90.69,19.844]
[1772720834665,13.12074766,90.788,90.731,13.03550227]
[1772720835368,13.12074766,90.788,90.733,9.917]
[1772720835565,13.12074766,90.788,90.734,13.03550227]
[1772720836167,13.12074766,90.812,90.738,13.03550227]
[1772720837170,13.12074766,90.812,90.751,13.03550227]
[1772720837367,23.02974766,90.806,90.752,9.915]
[1772720837568,13.12074766,90.806,90.752,9.915]
[1772720838471,13.12074766,90.806,90.751,13.03550227]
[1772720839365,13.12074766,90.806,90.765,9.914]
[1772720839971,13.12074766,90.806,90.758,9.914]
[1772720840566,13.12074766,90.806,90.77,4.26749364]
[1772720841764,13.12074766,90.806,90.78,4.26749364]
[1772720841967,13.12257023,90.821,90.79,4.26749364]
[1772720842673,4.26749364,90.81,90.76,4.26749364]
[1772720842876,13.12257023,90.809,90.76,4.26749364]
[1772720843178,13.12257023,90.792,90.76,4.26749364]
[1772720843378,13.12257023,90.792,90.77,4.26749364]
[1772720843578,13.12257023,90.808,90.76,4.26749364]
[1772720844577,13.12257023,90.808,90.77,4.26749364]
[1772720848076,13.12257023,90.808,90.76,4.26749364]
[1772720848280,13.12257023,90.808,90.738,13.35515391]
[1772720848474,13.12257023,90.808,90.75,4.26749364]
[1772720848680,13.46383523,90.792,90.74,4.26749364]
[1772720848882,13.46383523,90.789,90.74,4.26749364]
[1772720849275,13.46383523,90.772,90.73,4.26749364]
[1772720849477,13.46383523,90.772,90.722,13.35515391]
[1772720849678,4.26749364,90.77,90.72,4.26749364]
[1772720849879,13.46383523,90.748,90.7,4.26749364]
[1772720850074,13.46383523,90.748,90.69,4.26749364]
[1772720850270,13.46383523,90.741,90.69,4.26749364]
[1772720850479,13.46383523,90.741,90.682,13.35515391]
[1772720850979,13.46383523,90.739,90.684,9.923]
[1772720851175,13.46383523,90.739,90.685,13.35515391]
[1772720851377,13.46383523,90.739,90.691,13.35515391]
[1772720851577,13.46383523,90.756,90.691,13.35515391]
[1772720852576,13.46383523,90.756,90.7,13.35515391]
[1772720852781,13.46383523,90.756,90.69,9.15928159]
[1772720853476,13.46383523,90.756,90.691,9.922]
[1772720854380,9.915,90.752,90.691,9.922]
[1772720854681,13.46383523,90.751,90.691,9.922]
[1772720855380,9.916,90.747,90.691,9.922]
[1772720855682,13.46383523,90.746,90.691,9.922]
[1772720856077,13.46383523,90.746,90.692,13.35515391]
[1772720857382,13.46383523,90.744,90.692,13.35515391]
[1772720858876,13.46383523,90.744,90.694,13.35515391]
[1772720859376,13.46383523,90.744,90.696,9.921]
[1772720860279,13.46383523,90.744,90.694,13.35515391]
[1772720860476,13.46383523,90.744,90.67,11.07652529]
[1772720860477,13.46383523,90.744,90.679,13.35515391]
[1772720860677,13.46383523,90.713,90.662,13.35515391]
[1772720860879,13.46383523,90.713,90.65,11.07678963]
[1772720861084,13.46383523,90.713,90.65,9.15841958]
[1772720861581,13.46383523,90.713,90.653,9.926]
[1772720861782,13.46383523,90.713,90.653,23.28115391]
[1772720862383,13.46383523,90.713,90.658,9.925]
[1772720863179,13.46383523,90.713,90.665,9.925]
[1772720863583,13.46383523,90.713,90.672,9.924]
[1772720864180,13.46383523,90.713,90.668,13.35515391]
[1772720865390,13.46383523,90.713,90.676,9.923]
[1772720868090,13.46383523,90.713,90.651,13.35515391]
[1772720869493,13.46383523,90.713,90.657,9.926]
[1772720869494,13.9938474,90.712,90.657,9.926]
[1772720870389,13.9938474,90.712,90.664,9.925]
[1772720870587,13.9938474,90.712,90.67,4.27666991]
[1772720871199,13.9938474,90.712,90.68,4.27666991]
[1772720871396,13.9938474,90.726,90.68,4.27666991]
[1772720871599,13.9938474,90.709,90.633,13.73424126]
[1772720871896,13.9938474,90.699,90.64,4.27666991]
[1772720872086,13.9938474,90.699,90.65,4.27666991]
[1772720873195,13.9938474,90.699,90.66,4.27666991]
[1772720876996,9.921,90.698,90.66,4.27666991]
[1772720877192,13.9938474,90.697,90.65,4.27666991]
[1772720878492,13.9938474,90.693,90.65,4.27666991]
[1772720879602,13.9938474,90.69,90.64,14.20366991]
[1772720879996,9.922,90.689,90.634,13.73424126]
[1772720880198,13.9938474,90.688,90.617,13.73424126]
[1772720880400,13.9938474,90.669,90.61,4.27666991]
[1772720880593,13.9938474,90.662,90.63,4.27666991]
[1772720880805,13.9938474,90.677,90.64,4.27666991]
[1772720882004,13.9938474,90.677,90.619,13.73424126]
[1772720882204,13.9938474,90.677,90.63,4.27666991]
[1772720882402,13.9938474,90.725,90.65,4.27666991]
[1772720882703,13.9938474,90.709,90.65,4.27666991]
[1772720883204,13.9938474,90.699,90.65,4.27666991]
[1772720883405,13.9938474,90.695,90.65,4.27666991]
[1772720884007,13.9938474,90.692,90.65,4.27666991]
[1772720885001,13.9938474,90.692,90.638,9.928]
[1772720885307,13.9938474,90.689,90.64,4.27666991]
[1772720886299,13.9938474,90.689,90.66,4.27666991]
[1772720888507,13.9938474,90.703,90.66,4.27666991]
[1772720890509,13.9938474,90.701,90.66,4.27666991]
[1772720892113,13.9938474,90.719,90.67,4.27666991]
[1772720892415,13.9938474,90.719,90.68,4.27666991]
[1772720892615,13.9938474,90.719,90.69,4.27666991]
[1772720892815,13.9938474,90.719,90.671,13.73424126]
[1772720893109,13.9938474,90.719,90.61,156.4043858]
[1772720893110,13.9938474,90.719,90.68,4.27666991]
[1772720893920,13.9938474,90.719,90.69,4.27666991]
[1772720894117,13.9938474,90.719,90.68,4.27666991]
[1772720894718,13.9938474,90.719,90.678,9.923]
[1772720894919,13.9938474,90.719,90.68,4.27666991]
[1772720896418,13.9938474,90.719,90.66,4.27666991]
[1772720896719,19.827,90.768,90.66,4.27666991]
[1772720896720,13.9938474,90.709,90.66,4.27666991]
[1772720897526,13.9938474,90.709,90.66,14.20166991]
[1772720897820,13.9938474,90.709,90.654,13.73424126]
[1772720897821,4.27666991,90.7,90.65,4.27666991]
[1772720898022,13.9938474,90.695,90.65,4.27666991]
[1772720901124,13.9938474,90.695,90.66,4.27666991]
[1772720902228,13.9938474,90.695,90.643,9.927]
[1772720902726,13.9938474,90.695,90.66,4.27666991]
[1772720903924,13.4935489,90.709,90.66,4.27666991]
[1772720904123,13.4935489,90.709,90.68,4.27666991]
[1772720904326,13.4935489,90.709,90.67,4.27666991]
[1772720904521,13.4935489,90.709,90.68,4.27666991]
[1772720905428,13.4935489,90.709,90.664,9.925]
[1772720905637,13.4935489,90.709,90.66,4.27666991]
[1772720907128,13.4935489,90.709,90.67,4.27666991]
[1772720907329,13.4935489,90.709,90.68,4.27666991]
[1772720909326,13.4935489,90.709,90.67,4.27666991]
[1772720909930,13.4935489,90.709,90.671,9.924]
[1772720910135,13.4935489,90.709,90.68,4.27666991]
[1772720911024,13.4935489,90.709,90.671,9.924]
[1772720911225,13.4935489,90.709,90.67,4.27666991]
[1772720912824,14.30675006,90.729,90.68,4.27666991]
[1772720913030,14.30675006,90.729,90.7,4.27666991]
[1772720913232,14.30675006,90.748,90.71,4.27666991]
[1772720913434,14.30675006,90.748,90.693,13.24887986]
[1772720913435,14.30675006,90.748,90.72,4.27666991]
[1772720915537,24.22075006,90.761,90.72,4.27666991]
[1772720915734,14.30675006,90.761,90.73,4.27666991]
[1772720916133,14.30675006,90.761,90.72,4.27666991]
[1772720916633,4.27666991,90.78,90.72,4.27666991]
[1772720916634,14.30675006,90.765,90.72,4.27666991]
[1772720917237,14.30675006,90.763,90.712,9.92]
[1772720917538,14.30675006,90.759,90.712,9.92]
[1772720917838,14.30675006,90.759,90.71,4.27666991]
[1772720918542,14.30675006,90.749,90.7,4.27344212]
[1772720918936,14.30675006,90.749,90.653,19.852]
[1772720918937,14.30675006,90.749,90.72,4.27344212]
[1772720919239,14.30675006,90.766,90.72,4.27344212]
[1772720919638,14.30675006,90.766,90.73,4.27344212]
[1772720920835,14.30675006,90.766,90.71,4.27344212]
[1772720921443,14.30675006,90.766,90.72,4.27344212]
[1772720921642,14.30675006,90.759,90.71,4.27344212]
[1772720922344,14.30675006,90.749,90.7,4.27344212]
[1772720922542,14.30675006,90.749,90.71,4.27344212]
[1772720924436,14.30675006,90.749,90.701,9.921]
[1772720925345,14.30675006,90.749,90.705,9.92]
[1772720925542,14.30675006,90.749,90.71,4.27344212]
[1772720926140,14.30675006,90.761,90.712,9.92]
[1772720926347,14.30675006,90.761,90.72,4.27344212]
[1772720929643,13.61647943,90.776,90.723,13.31439586]
[1772720929843,13.61647943,90.776,90.73,4.27344212]
[1772720930846,418.60259394,90.823,90.74,4.27344212]
[1772720931041,13.61647943,90.805,90.75,17.58783798]
[1772720931350,13.61647943,90.799,90.75,17.58783798]
[1772720931550,13.61647943,90.799,90.75,4.27344212]
[1772720932443,13.61647943,90.793,90.75,4.27344212]
[1772720932643,13.61647943,90.793,90.675,11.03]
[1772720932644,13.61647943,90.809,90.751,13.31439586]
[1772720932844,13.61647943,90.799,90.74,4.27344212]
[1772720933041,13.61647943,90.799,90.741,13.31439586]
[1772720933654,9.91,90.797,90.741,13.31439586]
[1772720933949,13.61647943,90.796,90.741,13.31439586]
[1772720935150,13.61647943,90.796,90.743,13.31439586]
[1772720935854,13.61647943,90.796,90.75,4.27344212]
[1772720936855,13.61647943,90.789,90.745,13.31439586]
[1772720937954,13.61647943,90.787,90.73,4.27344212]
[1772720938146,13.61647943,90.779,90.73,4.27344212]
[1772720938558,13.61647943,90.779,90.725,13.31439586]
[1772720938948,13.61647943,90.769,90.725,13.31439586]
[1772720940553,13.61647943,90.769,90.71,14.19344212]
[1772720940858,13.61647943,90.749,90.69,17.58783798]
[1772720941057,13.61647943,90.749,90.694,9.921]
[1772720941353,4.27344212,90.73,90.69,13.31439586]
[1772720941951,9.916,90.749,90.691,13.31439586]
[1772720942152,13.61647943,90.748,90.7,17.58783798]
[1772720943060,4.27344212,90.73,90.68,4.27344212]
[1772720943558,13.61647943,90.729,90.677,13.31439586]
[1772720943950,13.61647943,90.729,90.68,4.27344212]
[1772720944350,4.27344212,90.72,90.677,13.31439586]
[1772720944558,13.61647943,90.729,90.677,13.31439586]
[1772720946358,13.61647943,90.729,90.671,9.924]
[1772720946359,13.61647943,90.729,90.681,13.31439586]
[1772720946558,13.61647943,90.729,90.671,13.31439586]
[1772720947253,13.61647943,90.728,90.672,9.924]
[1772720947456,13.61647943,90.728,90.671,13.31439586]
[1772720948159,13.61647943,90.728,90.672,13.31439586]
[1772720948463,13.61647943,90.728,90.68,4.27344212]
[1772720950864,13.61647943,90.728,90.69,4.27344212]
[1772720951067,9.916,90.746,90.691,13.31439586]
[1772720951362,13.61647943,90.796,90.74,4.27344212]
[1772720951558,13.61647943,90.779,90.72,4.27344212]
[1772720952364,4.27344212,90.77,90.72,4.27344212]
[1772720952565,13.61647943,90.769,90.72,4.27344212]
[1772720952761,13.61647943,90.769,90.73,4.27344212]
[1772720953566,13.61647943,90.769,90.721,13.31439586]
[1772720954370,13.61647943,90.769,90.73,4.27344212]
[1772720954668,10.21589083,90.849,90.76,4.27344212]
[1772720954871,27.27400794,90.903,90.76,4.27344212]
[1772720954872,4.27344212,90.85,90.79,4.27344212]
[1772720955067,4.27344212,90.84,90.78,4.27344212]
[1772720955273,4.27344212,90.83,90.77,4.27344212]
[1772720955472,9.907,90.829,90.77,4.27344212]
[1772720955666,4.27344212,90.81,90.76,4.27344212]
[1772720956172,9.909,90.806,90.76,4.27344212]
[1772720956372,4.27344212,90.81,90.76,4.27344212]
[1772720956571,9.14489284,90.84,90.749,13.31439586]
[1772720956769,13.61647943,90.838,90.749,13.31439586]
[1772720957468,13.61647943,90.816,90.749,13.31439586]
[1772720957675,13.61647943,90.816,90.75,9.915]
[1772720957876,13.61647943,90.816,90.75,23.22939586]
[1772720958569,9.908,90.814,90.75,23.22939586]
[1772720958767,14.39714,90.813,90.75,23.22939586]
[1772720959173,9.909,90.81,90.75,13.31439586]
[1772720959372,14.39714,90.809,90.75,13.31439586]
[1772720960365,9.909,90.805,90.75,13.31439586]
[1772720960573,14.39714,90.804,90.75,13.31439586]
[1772720962568,14.39714,90.802,90.75,13.31439586]
[1772720972088,14.39714,90.802,90.751,9.915]
[1772720972480,9.91,90.801,90.752,13.57336449]
[1772720972679,23.34506485,90.801,90.752,13.57336449]
[1772720972882,13.43506485,90.801,90.752,13.57336449]
[1772720974386,13.43506485,90.801,90.738,13.57336449]
[1772720975287,9.912,90.782,90.738,13.57336449]
[1772720976382,9.912,90.779,90.725,13.57336449]
[1772720976680,13.43506485,90.778,90.725,13.57336449]
[1772720978485,13.43506485,90.778,90.731,13.57336449]
[1772720980987,13.43506485,90.778,90.74,4.26987172]
[1772720983190,13.43506485,90.782,90.74,17.84323621]
[1772720984189,13.43506485,90.782,90.74,13.57336449]
[1772720984580,9.913,90.774,90.74,13.57336449]
[1772720984780,13.43506485,90.782,90.74,13.57336449]
[1772720984985,13.43506485,90.782,90.741,13.57336449]
[1772720985181,17.70493657,90.79,90.741,13.57336449]
[1772720985384,13.43506485,90.789,90.741,13.57336449]
[1772720986390,9.912,90.783,90.741,13.57336449]
[1772720986587,10.21589083,90.856,90.77,4.26987172]
[1772720986789,13.43506485,90.834,90.79,4.26987172]
[1772720986985,13.43506485,90.834,90.784,13.57336449]
[1772720987187,13.43506485,90.834,90.78,4.26987172]
[1772720987690,13.43506485,90.819,90.77,4.26987172]
[1772720987893,13.43506485,90.809,90.76,4.26987172]
[1772720988089,13.43506485,90.809,90.75,13.57336449]
[1772720988290,13.43506485,90.809,90.76,4.26987172]
[1772720989396,13.10988515,90.808,90.76,4.26987172]
[1772720989786,13.10988515,90.827,90.771,13.99323039]
[1772720990192,13.10988515,90.816,90.77,4.26987172]
[1772720990397,19.809,90.855,90.757,13.99323039]
[1772720990398,13.10988515,90.809,90.76,4.26987172]
[1772720990792,23.01888515,90.809,90.76,18.26310211]
[1772720991195,23.01888515,90.809,90.77,4.26987172]
[1772720992594,13.10988515,90.809,90.77,4.26987172]
[1772720993796,9.909,90.808,90.76,18.26310211]
[1772720994097,4.26987172,90.81,90.76,18.26310211]
[1772720994098,13.10988515,90.807,90.76,18.26310211]
[1772720994395,13.10988515,90.804,90.76,13.99323039]
[1772720994894,13.10988515,90.804,90.76,18.26310211]
[1772720995396,13.10988515,90.791,90.739,13.99323039]
[1772720995594,13.10988515,90.791,90.74,4.26987172]
[1772720996297,13.10988515,90.791,90.741,13.99323039]
[1772720996497,13.10988515,90.791,90.75,4.26987172]
[1772720997696,13.10988515,90.791,90.751,13.99323039]
[1772720998397,13.10988515,90.791,90.74,4.26987172]
[1772720998695,13.10988515,90.791,90.741,13.99323039]
[1772720999196,13.10988515,90.79,90.741,13.99323039]
[1772721000301,13.10988515,90.799,90.74,4.26987172]
[1772721000507,13.10988515,90.826,90.78,4.26987172]
[1772721000703,13.10988515,90.809,90.76,4.26987172]
[1772721000908,13.10988515,90.796,90.75,4.26987172]
[1772721001108,13.10988515,90.789,90.743,13.99323039]
[1772721001298,13.10988515,90.777,90.72,4.26987172]
[1772721001496,13.10988515,90.749,90.7,4.26987172]
[1772721001701,13.10988515,90.749,90.692,13.99323039]
[1772721001899,13.10988515,90.765,90.72,4.26987172]
[1772721002104,13.10988515,90.749,90.692,13.99323039]
[1772721002305,167.80107135,90.807,90.69,4.26987172]
[1772721002306,13.10988515,90.739,90.69,4.26987172]
[1772721002500,13.41884889,90.736,90.691,13.99323039]
[1772721002805,13.41884889,90.754,90.7,4.26987172]
[1772721003001,13.41884889,90.749,90.7,4.26987172]
[1772721003303,167.80207135,90.807,90.7,4.26987172]
[1772721003304,12.46756367,90.759,90.7,4.26987172]
[1772721003505,12.46756367,90.749,90.693,12.81008801]
[1772721003709,13.65107135,90.813,90.69,4.26987172]
[1772721003710,4.26987172,90.74,90.69,4.26987172]
[1772721004005,4.26987172,90.76,90.701,12.81008801]
[1772721004206,12.46756367,90.759,90.711,12.81008801]
[1772721004407,12.46756367,90.749,90.7,4.26987172]
[1772721004610,16.73743539,90.72,90.671,12.81008801]
[1772721004908,12.46756367,90.759,90.701,12.81008801]
[1772721005108,12.46756367,90.759,90.71,4.26987172]
[1772721005301,4.26987172,90.74,90.69,4.26987172]
[1772721005505,12.46756367,90.749,90.71,4.26987172]
[1772721005702,12.46756367,90.749,90.702,12.81008801]
[1772721005908,4.26987172,90.76,90.71,4.26987172]
[1772721006114,12.46756367,90.769,90.71,4.26987172]
[1772721006405,12.46756367,90.76,90.72,4.26987172]
[1772721006610,12.46756367,90.76,90.702,12.81008801]
[1772721006810,12.46756367,90.76,90.72,4.26987172]
[1772721007008,154.11,90.831,90.7,4.26987172]
[1772721007009,4.26987172,90.75,90.7,4.26987172]
[1772721007204,12.46756367,90.749,90.69,4.26987172]
[1772721007504,12.46756367,90.749,90.691,12.81008801]
[1772721007704,12.46756367,90.749,90.701,12.81008801]
[1772721007909,12.46756367,90.759,90.71,4.26987172]
[1772721008107,12.46756367,90.759,90.701,12.81008801]
[1772721008108,12.46756367,90.749,90.69,4.26987172]
[1772721008309,12.46756367,90.739,90.69,4.26987172]
[1772721008512,10.21589083,90.796,90.67,4.26987172]
[1772721008513,12.46756367,90.719,90.67,4.26987172]
[1772721008710,12.46756367,90.719,90.668,12.81008801]
[1772721009105,4.26987172,90.73,90.681,12.81008801]
[1772721009307,4.26987172,90.75,90.701,12.81008801]
[1772721009508,4.26987172,90.76,90.71,4.26987172]
[1772721009712,4.26987172,90.76,90.701,12.81008801]
[1772721009713,8.42328039,90.812,90.75,4.26987172]
[1772721009915,4.26987172,90.81,90.751,12.81008801]
[1772721010217,14.18087172,90.79,90.74,4.26987172]
[1772721010415,12.46756367,90.789,90.734,12.81008801]
[1772721010609,12.46756367,90.806,90.744,12.81008801]
[1772721010808,12.46756367,90.806,90.731,12.81008801]
[1772721011118,9.911,90.789,90.731,12.81008801]
[1772721011309,12.46756367,90.806,90.731,12.81008801]
[1772721011711,12.46756367,90.806,90.71,9.1499618]
[1772721011712,9.909,90.811,90.744,12.81008801]
[1772721012009,9.1499618,90.84,90.75,9.1499618]
[1772721012210,153.982,90.906,90.73,9.1499618]
[1772721012211,12.46756367,90.835,90.771,12.81008801]
[1772721012719,12.46756367,90.844,90.772,12.81008801]
[1772721012915,10.21589083,90.903,90.75,12.81008801]
[1772721012916,12.46756367,90.839,90.75,12.81008801]
[1772721013316,9.91,90.8,90.75,12.81008801]
[1772721013524,12.46756367,90.819,90.75,12.81008801]
[1772721013717,12.46756367,90.819,90.726,12.81008801]
[1772721013919,12.46756367,90.799,90.73,9.1499618]
[1772721014113,12.46756367,90.819,90.731,12.81008801]
[1772721014514,12.46756367,90.817,90.748,12.81008801]
[1772721014717,12.46756367,90.817,90.731,12.81008801]
[1772721014916,12.46756367,90.809,90.731,12.81008801]
[1772721015114,12.46756367,90.809,90.71,9.1499618]
[1772721015115,12.46756367,90.803,90.733,12.81008801]
[1772721015322,12.46756367,90.829,90.733,12.81008801]
[1772721015520,12.46756367,90.829,90.764,9.914]
[1772721015721,12.46756367,90.849,90.77,9.1499618]
[1772721015921,12.46756367,90.849,90.771,12.81008801]
[1772721016125,12.46756367,90.849,90.785,22.72108801]
[1772721016317,12.46756367,90.849,90.786,12.81008801]
[1772721016624,9.905,90.847,90.786,12.81008801]
[1772721016824,12.46756367,90.849,90.786,12.81008801]
[1772721017325,12.46756367,90.858,90.791,12.81008801]
[1772721017625,12.46756367,90.858,90.771,12.81008801]
[1772721017816,12.46756367,90.84,90.771,12.81008801]
[1772721018126,12.46756367,90.84,90.751,12.81008801]
[1772721018427,12.46756367,90.809,90.74,12.81008801]
[1772721019126,9.909,90.808,90.74,12.81008801]
[1772721019326,13.039692,90.799,90.711,12.79309942]
[1772721019725,13.039692,90.799,90.715,12.79309942]
[1772721020124,9.1499618,90.83,90.705,12.79309942]
[1772721020125,13.039692,90.776,90.705,12.79309942]
[1772721020522,13.039692,90.776,90.682,196.51504107]
[1772721020721,13.039692,90.759,90.684,12.79309942]
[1772721021125,22.951692,90.778,90.712,22.71209942]
[1772721021326,13.039692,90.799,90.713,12.79309942]
[1772721021530,13.039692,90.799,90.721,12.79309942]
[1772721021726,13.039692,90.799,90.73,12.79309942]
[1772721022127,13.039692,90.799,90.701,12.79309942]
[1772721022427,13.039692,90.799,90.7,9.1499618]
[1772721022428,13.039692,90.784,90.712,22.71209942]
[1772721022624,154.091,90.842,90.66,9.1499618]
[1772721022625,9.1499618,90.82,90.721,12.79309942]
[1772721022824,13.039692,90.819,90.741,12.79309942]
[1772721023430,9.91,90.795,90.721,12.79309942]
[1772721023831,9.912,90.784,90.721,12.79309942]
[1772721024033,9.1499618,90.8,90.7,9.1499618]
[1772721024034,13.039692,90.783,90.701,12.79309942]
[1772721024329,13.039692,90.759,90.681,12.79309942]
[1772721024720,13.039692,90.779,90.681,12.79309942]
[1772721025130,13.039692,90.779,90.705,12.79309942]
[1772721025830,13.039692,90.799,90.705,12.79309942]
[1772721026028,13.039692,90.799,90.737,9.917]
[1772721026326,13.039692,90.799,90.738,12.79309942]
[1772721026826,12.23894916,90.821,90.745,13.3377203]
[1772721027433,12.23894916,90.821,90.761,13.3377203]
[1772721027632,12.23894916,90.821,90.74,9.1499618]
[1772721027829,9.908,90.82,90.748,9.916]
[1772721028030,12.23894916,90.82,90.741,13.3377203]
[1772721028427,12.23894916,90.82,90.759,9.914]
[1772721028833,12.23894916,90.819,90.741,13.3377203]
[1772721029032,12.23894916,90.806,90.744,13.3377203]
[1772721029238,19.805,90.872,90.73,9.1499618]
[1772721029239,12.23894916,90.839,90.751,13.3377203]
[1772721029740,22.14894916,90.802,90.735,9.917]
[1772721030139,22.14894916,90.802,90.731,13.3377203]
[1772721030841,9.91,90.798,90.734,9.917]
[1772721031436,9.91,90.798,90.739,9.917]
[1772721031835,12.23894916,90.801,90.739,9.917]
[1772721032038,12.23894916,90.801,90.727,13.3377203]
[1772721032236,12.23894916,90.799,90.71,9.1499618]
[1772721032634,12.23894916,90.799,90.717,13.3377203]
[1772721033538,12.23894916,90.799,90.731,13.3377203]
[1772721034139,12.23894916,90.799,90.73,9.1499618]
[1772721034140,12.23894916,90.824,90.751,13.3377203]
[1772721035139,9.909,90.811,90.751,13.3377203]
[1772721035341,12.23894916,90.824,90.751,13.3377203]
[1772721035543,9.906,90.833,90.773,23.2507203]
[1772721036144,12.23894916,90.874,90.79,22.4876821]
[1772721036343,12.23894916,90.874,90.791,13.3377203]
[1772721036641,12.23894916,90.842,90.77,9.1499618]
[1772721036837,12.23894916,90.842,90.73,9.1499618]
[1772721036838,12.23894916,90.866,90.791,13.3377203]
[1772721037042,9.905,90.847,90.777,9.912]
[1772721037241,12.23894916,90.846,90.777,9.912]
[1772721037841,9.905,90.843,90.777,9.912]
[1772721038540,9.1499618,90.87,90.77,9.1499618]
[1772721038541,9.13875363,90.87,90.786,13.3377203]
[1772721038744,10.22587279,90.905,90.731,154.278]
[1772721038745,12.23894916,90.889,90.811,13.3377203]
[1772721039145,9.902,90.877,90.815,9.908]
[1772721039335,12.23894916,90.889,90.811,13.3377203]
[1772721039540,9.13875363,90.91,90.79,9.13875363]
[1772721039541,12.23894916,90.907,90.831,13.3377203]
[1772721039740,12.23894916,90.907,90.79,9.13875363]
[1772721039741,12.23894916,90.888,90.811,13.3377203]